bitfinex/quotes_SOLUSD_20260214
["timestamp","ask_amount","ask_price","bid_price","bid_amount"]
[1771060487414,1.68165311,86.177,86.146,43.32]
[1771060487814,1.68165311,86.177,86.141,0.15251695]
[1771060488530,1.68165311,86.169,86.134,0.15662453]
[1771060489543,1.68165311,86.167,86.134,0.15662453]
[1771060489926,1.68165311,86.182,86.141,0.16070793]
[1771060490235,1.68165311,86.182,86.151,0.16070793]
[1771060492026,11.60348568,86.181,86.152,0.16866958]
[1771060493442,1.68165311,86.18,86.152,0.16866958]
[1771060494135,1.68165311,86.18,86.14,6.00103629]
[1771060494136,1.68165311,86.179,86.14,6.00103629]
[1771060494439,1.68165311,86.169,86.131,0.180298]
[1771060496113,1.68165311,86.167,86.131,0.180298]
[1771060498648,1.68165311,86.165,86.131,0.180298]
[1771060500332,1.68165311,86.163,86.131,0.180298]
[1771060500727,1.68165311,86.159,86.127,11.61066347]
[1771060500938,1.68165311,86.159,86.12,6.02695219]
[1771060501143,1.68165311,86.159,86.121,11.81749242]
[1771060501332,1.68165311,86.159,86.122,0.20592266]
[1771060501642,1.76943618,86.149,86.11,0.20939462]
[1771060502524,5.82457356,86.15,86.11,0.20939462]
[1771060502525,1.76943618,86.147,86.11,0.20939462]
[1771060502943,1.76943618,86.147,86.111,0.21287216]
[1771060504144,11.60793053,86.148,86.121,0.21629288]
[1771060504341,11.60644854,86.159,86.131,0.21629288]
[1771060504546,1.76943618,86.167,86.1,49.20457356]
[1771060504547,11.6056236,86.166,86.141,0.21967088]
[1771060505246,1.76943618,86.176,86.143,0.21967088]
[1771060505247,11.6050057,86.17,86.143,0.21967088]
[1771060505448,13.37444188,86.17,86.143,0.21967088]
[1771060505949,1.76943618,86.169,86.143,0.21967088]
[1771060506255,1.76943618,86.169,86.135,0.22301014]
[1771060506634,1.76943618,86.167,86.135,0.22301014]
[1771060507050,1.76943618,86.167,86.134,43.4]
[1771060508147,1.76943618,86.167,86.134,43.62957012]
[1771060508634,1.76943618,86.167,86.135,0.23279064]
[1771060510060,11.60550565,86.166,86.15,5.82457356]
[1771060510244,1.76943618,86.173,86.148,0.23597685]
[1771060511040,1.76943618,86.173,86.15,5.82457356]
[1771060511246,1.76943618,86.173,86.151,0.23911515]
[1771060511760,13.37304902,86.181,86.152,0.24221714]
[1771060511944,11.60402477,86.177,86.152,0.24221714]
[1771060512629,3.05861653,86.174,86.151,11.60752632]
[1771060512951,11.60160102,86.195,86.16,5.82457356]
[1771060513129,11.60160102,86.195,86.152,43.48]
[1771060513130,11.60160102,86.195,86.17,5.82457356]
[1771060514034,13.60527419,86.2,86.171,11.60483225]
[1771060514234,1.80430494,86.199,86.171,11.60483225]
[1771060515249,11.60119724,86.198,86.171,11.60483225]
[1771060515439,13.40550218,86.198,86.171,11.60483225]
[1771060516654,1.80430494,86.197,86.171,11.60483225]
[1771060516852,1.80430494,86.195,86.16,5.82457356]
[1771060518643,1.80430494,86.195,86.161,11.60615485]
[1771060519435,1.80430494,86.195,86.162,0.02171753]
[1771060520261,1.80430494,86.193,86.162,0.02171753]
[1771060521465,1.80430494,86.188,86.156,11.60680995]
[1771060522462,1.80430494,86.186,86.156,11.63735332]
[1771060525457,1.80430494,86.184,86.152,55.08734359]
[1771060525662,1.80430494,86.184,86.152,55.12638365]
[1771060526647,1.80430494,86.182,86.153,0.04181458]
[1771060528841,13.40688244,86.188,86.153,0.04181458]
[1771060529263,1.80430494,86.187,86.153,0.04181458]
[1771060529462,1.80430494,86.185,86.153,0.04181458]
[1771060532563,1.80430494,86.183,86.152,55.08734359]
[1771060533666,1.80430494,86.183,86.153,0.05834159]
[1771060535250,5.82457356,86.18,86.153,0.05834159]
[1771060535451,1.80430494,86.179,86.153,0.05834159]
[1771060536368,1.83347573,86.169,86.152,40.779041]
[1771060536973,1.83347573,86.169,86.146,11.60818799]
[1771060537766,1.83347573,86.167,86.144,43.88]
[1771060539053,1.83347573,86.167,86.137,11.60936819]
[1771060539359,1.83347573,86.149,86.119,43.9]
[1771060540162,1.83347573,86.147,86.119,43.9]
[1771060540370,1.83347573,86.159,86.119,43.9]
[1771060540566,1.83347573,86.159,86.12,5.82457356]
[1771060540751,1.83347573,86.159,86.121,43.92]
[1771060540946,1.83347573,86.149,86.121,43.92]
[1771060541263,1.83347573,86.137,86.102,11.61413207]
[1771060541451,1.83347573,86.137,86.107,43.92]
[1771060542166,1.83347573,86.137,86.102,11.61413207]
[1771060542371,1.83347573,86.137,86.103,43.92]
[1771060542673,1.83347573,86.129,86.103,43.92]
[1771060542878,7.65804929,86.12,86.098,7.33685595]
[1771060543051,1.83347573,86.119,86.098,7.33685595]
[1771060545779,1.83347573,86.109,86.098,7.33685595]
[1771060551366,1.83347573,86.107,86.098,7.33685595]
[1771060551763,1.83347573,86.105,86.098,7.33685595]
[1771060552663,5.83463255,86.11,86.099,0.02582821]
[1771060552862,5.83463255,86.11,86.098,7.33685595]
[1771060553775,1.83347573,86.109,86.098,7.33685595]
[1771060554481,5.83463255,86.11,86.098,7.33685595]
[1771060554659,1.83347573,86.108,86.098,7.33685595]
[1771060554861,1.83347573,86.117,86.098,7.33685595]
[1771060555080,5.83463255,86.11,86.098,7.33685595]
[1771060555589,5.83463255,86.12,86.1,0.02920725]
[1771060557469,1.83347573,86.118,86.098,7.33685595]
[1771060557696,5.83463255,86.11,86.098,7.33685595]
[1771060560290,1.83347573,86.109,86.098,7.33685595]
[1771060560497,1.83347573,86.109,86.07,0.1]
[1771060560498,1.83347573,86.108,86.078,0.03356475]
[1771060560670,5.83463255,86.1,86.08,0.03463159]
[1771060560873,5.83463255,86.11,86.079,11.61723533]
[1771060561085,1.85078992,86.117,86.079,11.61723533]
[1771060561282,5.83463255,86.1,86.079,11.61723533]
[1771060561499,5.83463255,86.1,86.08,44.08]
[1771060562786,5.83463255,86.1,86.081,11.61696541]
[1771060562994,5.83463255,86.11,86.081,11.61696541]
[1771060563493,5.83463255,86.12,86.081,40.65937895]
[1771060563997,5.83463255,86.11,86.082,44.1]
[1771060564488,7.68542247,86.12,86.083,40.65843429]
[1771060565284,1.85078992,86.119,86.083,40.65843429]
[1771060565793,11.61006383,86.133,86.1,5.83463255]
[1771060565995,1.85078992,86.143,86.101,44.14]
[1771060566167,11.60740092,86.152,86.12,5.83463255]
[1771060567177,1.85078992,86.152,86.121,11.61156976]
[1771060567383,1.85078992,86.152,86.122,44.12]
[1771060568897,11.60752632,86.151,86.122,44.12]
[1771060569415,1.85078992,86.151,86.123,11.61130011]
[1771060574286,1.85078992,86.158,86.13,5.83463255]
[1771060574486,13.45675162,86.163,86.13,5.83463255]
[1771060574692,1.85078992,86.162,86.131,44.22]
[1771060575205,1.85078992,86.162,86.132,44.22]
[1771060575386,1.85078992,86.168,86.14,5.83463255]
[1771060575707,1.85078992,86.174,86.141,44.22]
[1771060577905,1.85078992,86.172,86.142,11.60873905]
[1771060578290,1.85078992,86.169,86.141,44.22]
[1771060578590,1.85078992,86.169,86.141,55.82885424]
[1771060579095,1.85078992,86.169,86.141,11.60885424]
[1771060579493,6.05898967,86.184,86.15,5.83463255]
[1771060579690,6.05898967,86.184,86.16,5.83463255]
[1771060579891,1.85078992,86.187,86.162,11.60604442]
[1771060580198,1.85078992,86.187,86.161,44.26]
[1771060580603,1.85078992,86.187,86.161,55.8661366]
[1771060582316,1.81552616,86.187,86.161,55.8661366]
[1771060583814,6.0579854,86.198,86.162,0.05743206]
[1771060584006,6.0579854,86.198,86.164,0.05743206]
[1771060584432,1.83315804,86.197,86.164,0.05743206]
[1771060585306,1.83315804,86.197,86.171,0.05824646]
[1771060585613,1.83315804,86.197,86.172,0.05904608]
[1771060585910,1.83315804,86.197,86.173,0.05904608]
[1771060587598,2.03315804,86.2,86.174,0.0606306]
[1771060587794,1.83315804,86.198,86.174,0.0606306]
[1771060588422,1.83315804,86.198,86.172,44.32]
[1771060589419,1.83315804,86.198,86.172,55.9245708]
[1771060590915,1.83315804,86.179,86.132,11.61008684]
[1771060591113,1.83315804,86.179,86.138,29.0230348]
[1771060591411,1.83315804,86.179,86.139,0.05967971]
[1771060591949,1.83315804,86.169,86.139,0.05967971]
[1771060593916,1.83315804,86.179,86.141,0.05022485]
[1771060595318,5.83463255,86.18,86.141,0.05022485]
[1771060595521,1.83315804,86.179,86.141,0.05022485]
[1771060596307,1.83315804,86.178,86.142,0.04413283]
[1771060596503,1.83315804,86.178,86.144,0.04113365]
[1771060596711,1.83315804,86.169,86.143,44.5]
[1771060597927,1.83315804,86.169,86.144,11.64663863]
[1771060598922,1.83315804,86.169,86.144,11.60846953]
[1771060599100,1.83315804,86.167,86.143,44.5]
[1771060602810,1.83315804,86.165,86.143,44.5]
[1771060603526,1.83315804,86.159,86.143,44.5]
[1771060604215,1.83315804,86.159,86.131,11.61011897]
[1771060604719,1.83315804,86.157,86.131,11.61011897]
[1771060604915,1.83315804,86.157,86.129,44.62]
[1771060605122,1.83315804,86.157,86.129,56.23035778]
[1771060605702,11.60658325,86.158,86.129,44.62]
[1771060605703,1.83315804,86.149,86.129,44.62]
[1771060608610,1.83315804,86.147,86.113,11.61257423]
[1771060608806,1.83315804,86.147,86.114,44.68]
[1771060609312,1.83315804,86.147,86.115,44.68]
[1771060609905,1.83315804,86.136,86.112,44.68]
[1771060610105,1.83315804,86.129,86.112,44.68]
[1771060613226,1.83315804,86.129,86.091,11.61561603]
[1771060613420,1.83315804,86.129,86.092,44.74]
[1771060614634,1.83315804,86.127,86.092,44.74]
[1771060615340,1.83315804,86.119,86.093,44.76]
[1771060615630,62.65247335,86.155,86.1,5.83192221]
[1771060615631,1.83315804,86.139,86.1,5.83192221]
[1771060616627,1.83315804,86.145,86.11,5.83192221]
[1771060617434,1.83315804,86.143,86.111,11.61291821]
[1771060620541,1.83315804,86.141,86.104,29.03453948]
[1771060621633,1.83315804,86.141,86.111,11.61291821]
[1771060622222,1.83315804,86.139,86.111,11.61291821]
[1771060626431,1.83315804,86.139,86.104,29.03453948]
[1771060627026,6.0594484,86.151,86.11,5.83192221]
[1771060627230,6.0594484,86.151,86.12,5.83192221]
[1771060627421,6.0594484,86.151,86.13,5.83192221]
[1771060627735,29.01099533,86.175,86.13,5.83192221]
[1771060627736,1.83315804,86.168,86.131,44.84]
[1771060628311,1.83315804,86.168,86.133,11.60995205]
[1771060628817,1.83315804,86.168,86.134,44.82]
[1771060629831,1.83315804,86.166,86.134,44.82]
[1771060630022,1.83315804,86.159,86.135,44.82]
[1771060630211,1.83315804,86.149,86.128,44.84]
[1771060630732,1.83315804,86.139,86.111,11.61291821]
[1771060630923,1.83315804,86.139,86.117,44.84]
[1771060632537,1.83315804,86.139,86.118,11.61197426]
[1771060635821,1.83315804,86.139,86.114,11.61249152]
[1771060636615,1.83315804,86.129,86.114,11.61249152]
[1771060637628,1.83315804,86.129,86.112,44.9]
[1771060638643,1.83315804,86.129,86.112,56.51268637]
[1771060644434,1.83315804,86.129,86.112,44.9]
[1771060644636,1.83315804,86.119,86.112,38.51319098]
[1771060644839,1.83315804,86.119,86.096,45.04]
[1771060645038,1.75188584,86.109,86.096,45.04]
[1771060645625,1.75188584,86.109,86.093,45.04]
[1771060646643,1.75188584,86.109,86.089,1.67396461]
[1771060646847,1.75188584,86.109,86.093,45.06]
[1771060648031,5.83192221,86.13,86.071,1.67396461]
[1771060648032,1.75188584,86.099,86.071,1.67396461]
[1771060648221,1.75188584,86.099,86.077,1.67396461]
[1771060650035,1.75188584,86.099,86.079,1.67396461]
[1771060651235,0.75188584,86.099,86.08,13.32340842]
[1771060651553,0.75188584,86.099,86.08,1.70630805]
[1771060652053,11.61467165,86.098,86.08,1.70630805]
[1771060652747,5.83192221,86.09,86.073,1.70630805]
[1771060653332,29.03313147,86.109,86.072,45.1]
[1771060653333,5.83192221,86.08,86.072,45.1]
[1771060653550,1.64136916,86.088,86.072,45.1]
[1771060656426,5.83192221,86.08,86.072,45.1]
[1771060656848,5.83192221,86.08,86.04,9.38854235]
[1771060656849,1.64136916,86.079,86.04,9.38854235]
[1771060657150,1.64136916,86.059,86.041,11.62236608]
[1771060657345,5.83192221,86.05,86.041,11.62236608]
[1771060657837,5.83192221,86.05,86.042,1.70630805]
[1771060658254,5.83192221,86.05,86.04,7.6822343]
[1771060658450,5.83192221,86.09,86.045,1.70630805]
[1771060658756,5.83192221,86.09,86.044,11.62196085]
[1771060658757,5.83192221,86.1,86.051,1.70630805]
[1771060658937,5.83192221,86.09,86.051,1.70630805]
[1771060659442,5.83192221,86.09,86.053,1.70630805]
[1771060661357,5.83192221,86.1,86.052,45.26]
[1771060661358,5.83192221,86.08,86.055,1.65078497]
[1771060662048,5.83192221,86.07,86.055,1.65078497]
[1771060662635,5.83192221,86.08,86.055,1.65078497]
[1771060663455,5.83192221,86.07,86.055,1.65078497]
[1771060664154,5.83192221,86.07,86.052,45.26]
[1771060664155,1.7331665,86.069,86.052,45.26]
[1771060664357,5.83192221,86.06,86.043,11.62198338]
[1771060667051,5.83192221,86.06,86.043,13.27276835]
[1771060668059,5.83192221,86.06,86.044,1.65078497]
[1771060669533,5.83192221,86.05,86.042,45.4]
[1771060669937,5.83192221,86.05,86.04,7.6822343]
[1771060670447,5.83192221,86.05,86.037,1.65078497]
[1771060671060,5.83192221,86.05,86.033,11.6234427]
[1771060671648,5.83192221,86.05,86.034,1.65078497]
[1771060672856,5.84286712,86.05,86.034,1.65078497]
[1771060673160,11.61858508,86.069,86.036,1.65078497]
[1771060674064,7.57603362,86.07,86.036,1.65078497]
[1771060674444,1.7331665,86.059,86.036,1.65078497]
[1771060675153,1.7331665,86.059,86.035,11.62317661]
[1771060675353,1.7331665,86.059,86.036,1.65078497]
[1771060676569,7.57603362,86.07,86.036,1.65078497]
[1771060676864,1.7331665,86.069,86.036,1.65078497]
[1771060677444,1.7331665,86.069,86.032,45.52]
[1771060677445,1.7331665,86.069,86.038,1.65078497]
[1771060680172,1.7331665,86.059,86.032,47.17078497]
[1771060680378,1.7331665,86.049,86.03,0.2]
[1771060681169,5.84286712,86.04,86.03,0.2]
[1771060681353,5.84286712,86.05,86.03,0.2]
[1771060681554,13.34855917,86.068,86.032,1.70429115]
[1771060681752,1.72983909,86.067,86.032,1.70429115]
[1771060682165,1.72983909,86.067,86.034,1.70429115]
[1771060682166,11.61993516,86.059,86.034,1.70429115]
[1771060682573,5.84286712,86.06,86.034,1.70429115]
[1771060683572,1.72983909,86.058,86.034,1.70429115]
[1771060685076,1.72983909,86.058,86.033,11.62344681]
[1771060685369,1.72983909,86.049,86.03,0.2]
[1771060687074,11.62097124,86.052,86.03,0.2]
[1771060687376,5.84286712,86.05,86.03,0.2]
[1771060687778,11.61858508,86.069,86.032,1.70429115]
[1771060687957,5.84286712,86.07,86.032,1.70429115]
[1771060688376,11.61724846,86.079,86.041,1.70429115]
[1771060688562,11.61724846,86.079,86.042,1.70429115]
[1771060689173,11.61724846,86.079,86.044,1.70429115]
[1771060689522,5.84286712,86.08,86.044,1.70429115]
[1771060689656,7.4232288,86.09,86.041,47.50429115]
[1771060689657,0.53879514,86.069,86.041,47.50429115]
[1771060689858,0.53879514,86.069,86.042,1.70429115]
[1771060690073,0.53879514,86.069,86.042,13.32652215]
[1771060690452,5.84286712,86.06,86.042,13.32652215]
[1771060690979,5.84286712,86.06,86.041,45.8]
[1771060691358,0.54066239,86.059,86.035,1.70429115]
[1771060691875,0.54254029,86.069,86.037,1.70429115]
[1771060692076,5.84286712,86.06,86.037,1.70429115]
[1771060696667,6.39449092,86.06,86.037,1.70429115]
[1771060697482,0.5516238,86.059,86.037,1.70429115]
[1771060701062,0.5516238,86.059,86.039,1.70429115]
[1771060703295,0.56182498,86.057,86.034,11.623249]
[1771060703676,0.56182498,86.057,86.034,13.32754015]
[1771060704094,0.56182498,86.057,86.035,1.70429115]
[1771060705891,0.56182498,86.057,86.037,1.70429115]
[1771060706083,5.84286712,86.06,86.037,1.70429115]
[1771060707699,6.4126886,86.06,86.037,1.70429115]
[1771060708497,5.84286712,86.06,86.038,11.62277133]
[1771060708702,11.61753876,86.077,86.039,1.70429115]
[1771060709599,11.61688985,86.082,86.041,1.70429115]
[1771060710297,5.84286712,86.08,86.041,1.70429115]
[1771060710603,5.84286712,86.08,86.042,40.6778085]
[1771060710900,5.84286712,86.08,86.043,1.70429115]
[1771060711517,6.06839051,86.089,86.061,1.77002274]
[1771060712024,5.84286712,86.09,86.061,1.77002274]
[1771060712207,0.57536483,86.079,86.046,46.0]
[1771060712506,11.61524442,86.094,86.046,46.0]
[1771060712507,0.57536483,86.069,86.046,46.0]
[1771060712708,0.57536483,86.069,86.047,1.77002274]
[1771060713709,0.57698174,86.059,86.036,1.77002274]
[1771060713904,0.57698174,86.059,86.035,46.02]
[1771060714082,5.84286712,86.05,86.035,46.02]
[1771060714583,0.57698174,86.054,86.035,47.79002274]
[1771060714784,12.19772737,86.059,86.036,1.77002274]
[1771060715405,0.57779221,86.058,86.036,1.77002274]
[1771060715907,5.84286712,86.06,86.037,1.77002274]
[1771060718407,11.61754032,86.077,86.039,1.77002274]
[1771060718610,5.84286712,86.07,86.039,1.77002274]
[1771060718819,11.61754032,86.077,86.04,5.84286712]
[1771060718995,5.84286712,86.08,86.041,1.77002274]
[1771060719529,5.84286712,86.08,86.042,46.1]
[1771060719703,5.84286712,86.08,86.043,1.77002274]
[1771060722710,5.84286712,86.08,86.045,1.79083934]
[1771060723100,0.5845919,86.069,86.045,1.79083934]
[1771060723905,6.428176,86.06,86.039,1.79083934]
[1771060724307,0.58530888,86.059,86.039,1.79083934]
[1771060726396,0.58530888,86.059,86.036,11.62293036]
[1771060726609,0.58530888,86.059,86.036,13.4137697]
[1771060727035,5.84286712,86.07,86.037,1.79083934]
[1771060727223,5.84286712,86.08,86.037,1.79083934]
[1771060727708,6.43097311,86.08,86.037,1.79083934]
[1771060728009,0.58810599,86.079,86.037,1.79083934]
[1771060728199,5.84286712,86.07,86.037,1.79083934]
[1771060729426,5.84286712,86.07,86.039,1.79083934]
[1771060729923,0.58944662,86.069,86.041,1.79083934]
[1771060732001,0.58944662,86.069,86.043,1.79083934]
[1771060732202,5.84286712,86.07,86.043,1.79083934]
[1771060732203,0.590779,86.062,86.043,1.79083934]
[1771060733909,5.84150304,86.06,86.04,46.24]
[1771060734106,0.59205627,86.059,86.04,46.24]
[1771060735909,12.2124644,86.065,86.041,1.79083934]
[1771060736329,0.59328449,86.064,86.041,1.79083934]
[1771060738122,0.59448985,86.062,86.041,1.79083934]
[1771060738635,11.61939509,86.063,86.041,1.79083934]
[1771060738938,0.59511075,86.063,86.042,1.79083934]
[1771060739611,0.59570806,86.072,86.043,1.79083934]
[1771060740531,5.84150304,86.08,86.045,1.79083934]
[1771060740732,11.61663268,86.084,86.045,1.79083934]
[1771060740930,0.5962913,86.102,86.061,1.79083934]
[1771060741115,0.5962913,86.102,86.063,1.73704766]
[1771060741435,17.45466677,86.11,86.071,1.73704766]
[1771060741633,11.61316373,86.11,86.071,1.73704766]
[1771060741813,6.0660883,86.118,86.081,1.73704766]
[1771060742134,11.61147072,86.122,86.091,1.73704766]
[1771060742334,11.61147072,86.122,86.092,1.73704766]
[1771060742712,11.61147072,86.122,86.094,1.73704766]
[1771060743318,13.32539154,86.122,86.094,1.73704766]
[1771060743933,13.32539154,86.122,86.096,1.73704766]
[1771060744516,1.71392082,86.121,86.096,1.73704766]
[1771060745035,1.71392082,86.121,86.098,1.73704766]
[1771060748018,1.71392082,86.121,86.099,11.61453675]
[1771060748218,1.71392082,86.121,86.1,1.73704766]
[1771060748432,6.06529779,86.135,86.101,1.73704766]
[1771060748630,1.71392082,86.134,86.111,1.73704766]
[1771060749553,0.2,86.15,86.121,1.73704766]
[1771060749921,9.1278025,86.149,86.121,1.73704766]
[1771060750116,7.41388168,86.149,86.123,1.73704766]
[1771060751040,7.41388168,86.149,86.131,1.73704766]
[1771060751333,7.41388168,86.149,86.132,1.73704766]
[1771060752118,7.41388168,86.149,86.133,11.60995205]
[1771060752328,7.41388168,86.149,86.133,13.34699971]
[1771060752531,7.41388168,86.149,86.134,1.73704766]
[1771060755133,1.71392082,86.148,86.131,46.42]
[1771060755318,1.71392082,86.148,86.132,11.61008684]
[1771060756027,7.41388168,86.149,86.133,1.73704766]
[1771060756539,0.2,86.16,86.134,1.73704766]
[1771060756839,0.2,86.16,86.136,1.73704766]
[1771060757341,0.2,86.17,86.141,1.73704766]
[1771060757743,1.71392082,86.159,86.136,1.73704766]
[1771060757943,1.71392082,86.159,86.135,11.60968247]
[1771060757944,1.71392082,86.166,86.138,1.73704766]
[1771060758325,0.2,86.17,86.141,1.73704766]
[1771060758625,0.2,86.17,86.142,11.60873905]
[1771060758843,1.91392082,86.17,86.144,1.73704766]
[1771060759542,6.04150304,86.17,86.144,1.73704766]
[1771060759743,6.04150304,86.17,86.145,46.54]
[1771060759944,6.04150304,86.17,86.146,1.73704766]
[1771060760827,6.04150304,86.17,86.149,1.73704766]
[1771060761626,1.71392082,86.169,86.149,1.73704766]
[1771060761822,1.71392082,86.169,86.148,11.60793053]
[1771060762151,1.71392082,86.169,86.148,13.34497819]
[1771060762538,1.71392082,86.169,86.147,46.54]
[1771060762928,0.2,86.17,86.149,1.73704766]
[1771060763146,0.2,86.17,86.151,1.73704766]
[1771060763440,0.2,86.17,86.151,48.31704766]
[1771060763647,0.2,86.17,86.152,1.73704766]
[1771060764340,0.2,86.17,86.148,11.60793053]
[1771060764341,1.71392082,86.179,86.154,1.73704766]
[1771060764563,7.55542386,86.16,86.125,1.73704766]
[1771060764744,7.55542386,86.16,86.135,1.73704766]
[1771060764745,1.71392082,86.159,86.135,1.73704766]
[1771060765054,1.71392082,86.181,86.141,1.73704766]
[1771060765225,1.71392082,86.181,86.143,1.73704766]
[1771060765427,1.71392082,86.179,86.143,1.73704766]
[1771060766146,1.71392082,86.169,86.143,1.73704766]
[1771060766450,1.71392082,86.169,86.145,1.73704766]
[1771060767134,1.71392082,86.169,86.146,11.60820003]
[1771060767753,1.71392082,86.169,86.147,1.73704766]
[1771060768431,1.71392082,86.169,86.148,46.64]
[1771060768827,1.71392082,86.169,86.15,1.73704766]
[1771060769046,1.71392082,86.169,86.149,11.60779579]
[1771060769739,1.71392082,86.179,86.15,1.73704766]
[1771060769936,11.60412724,86.177,86.151,11.60752632]
[1771060770129,1.71392082,86.176,86.151,11.60752632]
[1771060770442,1.71392082,86.176,86.152,1.73704766]
[1771060771649,1.84850845,86.197,86.16,5.84150304]
[1771060771831,1.84850845,86.195,86.162,1.83416959]
[1771060772147,1.84850845,86.193,86.164,1.83416959]
[1771060772352,1.84850845,86.193,86.166,1.83416959]
[1771060772752,1.84850845,86.199,86.166,1.83416959]
[1771060773055,1.84850845,86.199,86.163,11.60590972]
[1771060773056,0.2,86.2,86.171,1.83416959]
[1771060773352,0.2,86.2,86.173,1.83416959]
[1771060773654,1e-08,86.2,86.181,1.83416959]
[1771060774055,1e-08,86.2,86.183,1.83416959]
[1771060774255,58.50208527,86.22,86.207,1.83416959]
[1771060775238,0.2,86.22,86.207,1.83416959]
[1771060775440,1e-08,86.22,86.208,1.83416959]
[1771060775747,1e-08,86.22,86.209,1.83416959]
[1771060776347,1e-08,86.22,86.211,1.83416959]
[1771060777134,1e-08,86.22,86.21,46.72]
[1771060777541,1e-08,86.22,86.211,11.59944786]
[1771060778061,1e-08,86.22,86.212,1.83416959]
[1771060779646,1e-08,86.22,86.213,11.59917877]
[1771060780258,1e-08,86.22,86.21,46.72]
[1771060781658,1e-08,86.22,86.211,11.59944786]
[1771060782664,1e-08,86.22,86.212,1.85156181]
[1771060782964,1e-08,86.22,86.214,1.85156181]
[1771060783165,0.2,86.24,86.214,1.85156181]
[1771060783341,1e-08,86.24,86.221,1.85156181]
[1771060783863,1e-08,86.24,86.217,1.85156181]
[1771060783864,5.84150304,86.24,86.217,1.85156181]
[1771060784053,1.76804891,86.239,86.222,46.82]
[1771060784249,1.76804891,86.239,86.216,1.85156181]
[1771060784455,1.76804891,86.239,86.219,1.85156181]
[1771060784747,1.76804891,86.239,86.218,11.59850611]
[1771060785148,1.76804891,86.239,86.219,46.84]
[1771060786841,1.76804891,86.247,86.221,1.85156181]
[1771060787242,1.76804891,86.259,86.221,1.85156181]
[1771060787644,5.94150304,86.26,86.22,46.43533276]
[1771060787645,0.1,86.26,86.231,1.85156181]
[1771060788370,0.1,86.26,86.233,1.85156181]
[1771060788557,0.1,86.26,86.241,1.85156181]
[1771060788964,0.1,86.26,86.243,1.85156181]
[1771060789868,1e-08,86.27,86.258,1.85156181]
[1771060790071,1e-08,86.27,86.259,48.77156181]
[1771060790271,1e-08,86.27,86.259,1.85156181]
[1771060790458,1e-08,86.27,86.26,46.92]
[1771060790845,1e-08,86.27,86.261,13.44428621]
[1771060791268,1e-08,86.27,86.262,1.85156181]
[1771060791654,1e-08,86.27,86.263,46.94]
[1771060792278,1e-08,86.27,86.264,46.96]
[1771060792455,1e-08,86.27,86.261,11.5927244]
[1771060792655,1e-08,86.27,86.262,46.96]
[1771060793171,1e-08,86.27,86.263,11.59245562]
[1771060794482,1e-08,86.27,86.264,47.02]
[1771060794769,1e-08,86.27,86.265,47.04]
[1771060795153,1e-08,86.27,86.263,11.59245562]
[1771060795354,1e-08,86.27,86.256,40.5768874]
[1771060795661,1e-08,86.27,86.258,1.85156181]
[1771060796268,1e-08,86.27,86.26,5.81048468]
[1771060796469,1e-08,86.27,86.261,1.85156181]
[1771060797074,28.96261374,86.319,86.261,1.85156181]
[1771060797381,28.96261374,86.319,86.257,47.06]
[1771060797382,5.81048468,86.29,86.259,1.85156181]
[1771060797563,11.58762842,86.299,86.259,1.85156181]
[1771060798076,5.81048468,86.28,86.231,1.85156181]
[1771060798281,5.81048468,86.28,86.237,28.9896933]
[1771060798474,5.81048468,86.29,86.251,1.85156181]
[1771060798677,5.81048468,86.29,86.253,1.85156181]
[1771060799057,1.76804891,86.289,86.253,1.85156181]
[1771060799276,1.76804891,86.289,86.254,11.59366522]
[1771060799460,1.76804891,86.289,86.255,1.85156181]
[1771060800162,11.58909697,86.288,86.255,1.85156181]
[1771060800367,1.76804891,86.269,86.23,5.81048468]
[1771060800584,1.76804891,86.259,86.231,16.2]
[1771060800955,1.76804891,86.268,86.232,1.85156181]
[1771060801398,1.76804891,86.268,86.231,16.2]
[1771060801399,1.78376935,86.276,86.241,1.74530534]
[1771060801685,5.81048468,86.29,86.251,1.74530534]
[1771060802183,1.78376935,86.292,86.261,1.74530534]
[1771060802389,1.78376935,86.292,86.263,1.74530534]
[1771060802563,1.78376935,86.303,86.271,1.74530534]
[1771060802763,1.78376935,86.303,86.273,1.74530534]
[1771060802990,1.78376935,86.299,86.271,47.12]
[1771060803566,5.81048468,86.3,86.271,58.71132119]
[1771060803567,1.78376935,86.297,86.271,58.71132119]
[1771060803777,1.78376935,86.289,86.256,47.12]
[1771060804164,1.78376935,86.289,86.257,1.74530534]
[1771060804364,1.78376935,86.296,86.261,1.74530534]
[1771060804663,5.81048468,86.3,86.261,1.74530534]
[1771060804863,1.78376935,86.303,86.261,1.74530534]
[1771060805077,5.81048468,86.29,86.261,1.74530534]
[1771060805279,1.78376935,86.289,86.261,1.74530534]
[1771060806186,1.78376935,86.288,86.262,11.59259001]
[1771060807477,1.78376935,86.288,86.26,1.74530534]